bitfinex/quotes_SOLUSD_20241208
["timestamp","ask_amount","ask_price","bid_price","bid_amount"]
[1733648653724,23.776884,235.63,235.62,5.0]
[1733648653914,23.776884,235.63,235.62,10.0]
[1733648654111,12.95258994,235.67,235.62,10.0]
[1733648654628,12.95258994,235.66,235.62,10.0]
[1733648655399,23.776884,235.65,235.62,10.0]
[1733648655926,23.776884,235.65,235.64,5.0]
[1733648656289,23.776884,235.65,235.64,10.0]
[1733648656719,12.95258994,235.71,235.66,10.0]
[1733648657133,12.95258994,235.71,235.68,5.0]
[1733648657313,12.95258994,235.72,235.7,5.0]
[1733648657719,12.95258994,235.74,235.7,5.0]
[1733648658227,1.5263,235.84,235.7,5.0]
[1733648658228,12.95258994,235.77,235.74,5.0]
[1733648658422,12.95258994,235.76,235.74,5.0]
[1733648658960,12.95258994,235.75,235.69,5.0]
[1733648659114,12.95258994,235.7,235.66,10.0]
[1733648659423,12.95258994,235.69,235.66,5.0]
[1733648659613,12.95258994,235.69,235.66,10.0]
[1733648660111,12.95258994,235.68,235.66,5.0]
[1733648660516,12.95258994,235.67,235.64,5.0]
[1733648660929,12.95258994,235.68,235.65,5.0]
[1733648661221,12.95258994,235.67,235.65,5.0]
[1733648661597,12.95258994,235.68,235.65,5.0]
[1733648661800,12.95258994,235.69,235.67,5.0]
[1733648662025,12.95258994,235.7,235.67,5.0]
[1733648662830,12.95258994,235.71,235.67,5.0]
[1733648664034,12.95258994,235.71,235.69,5.0]
[1733648664212,12.95258994,235.72,235.69,5.0]
[1733648664419,12.95258994,235.73,235.69,5.0]
[1733648665116,12.95258994,235.72,235.69,5.0]
[1733648665444,12.95258994,235.71,235.69,5.0]
[1733648665801,12.95258994,235.7,235.67,5.0]
[1733648665997,12.95258994,235.69,235.67,5.0]
[1733648667607,12.95258994,235.7,235.67,5.0]
[1733648668427,12.95258994,235.69,235.67,5.0]
[1733648669013,12.95258994,235.69,235.66,5.0]
[1733648669629,12.95258994,235.7,235.66,5.0]
[1733648670232,12.95258994,235.72,235.67,5.0]
[1733648670824,12.95258994,235.71,235.67,5.0]
[1733648672546,12.95258994,235.7,235.67,5.0]
[1733648672752,20.0,235.65,235.55,7.8169]
[1733648673061,20.0,235.65,235.56,5.0]
[1733648673062,12.95258994,235.58,235.56,5.0]
[1733648673343,12.95258994,235.59,235.56,5.0]
[1733648673722,12.95258994,235.61,235.58,2.8169]
[1733648674036,12.95258994,235.62,235.58,7.8169]
[1733648675065,4.42578371,235.65,235.62,5.0]
[1733648675292,2.1831,235.79,235.62,5.0]
[1733648675293,12.95258994,235.66,235.62,5.0]
[1733648675768,12.95258994,235.65,235.62,5.0]
[1733648676070,12.95258994,235.64,235.62,5.0]
[1733648676250,12.95258994,235.63,235.58,5.0]
[1733648676454,10.608,235.67,235.59,2.8169]
[1733648676455,12.95258994,235.6,235.59,2.8169]
[1733648677841,12.95258994,235.61,235.59,2.8169]
[1733648678243,12.95258994,235.61,235.6,5.0]
[1733648678857,12.95258994,235.64,235.63,2.8169]
[1733648679088,12.95258994,235.66,235.64,5.0]
[1733648679291,12.95258994,235.65,235.64,5.0]
[1733648679607,12.95258994,235.65,235.63,2.8169]
[1733648679809,12.95258994,235.64,235.63,2.8169]
[1733648680284,12.95258994,235.65,235.63,2.8169]
[1733648680604,12.95258994,235.66,235.63,2.8169]
[1733648680792,12.95258994,235.65,235.63,2.8169]
[1733648681706,20.0,235.68,235.63,2.8169]
[1733648681886,12.95258994,235.69,235.68,2.8169]
[1733648684201,12.95258994,235.72,235.7,2.8169]
[1733648685521,12.95258994,235.75,235.73,5.0]
[1733648685878,12.95258994,235.76,235.74,2.8169]
[1733648686079,12.95258994,235.77,235.74,2.8169]
[1733648686278,12.95258994,235.77,235.75,5.0]
[1733648686478,12.95258994,235.78,235.76,2.8169]
[1733648686705,12.95258994,235.77,235.76,2.8169]
[1733648687537,12.95258994,235.79,235.76,2.8169]
[1733648687706,12.95258994,235.78,235.77,5.0]
[1733648689410,12.95258994,235.78,235.74,2.8169]
[1733648689601,12.95258994,235.75,235.74,2.8169]
[1733648690002,12.95258994,235.75,235.71,5.0]
[1733648690225,12.95258994,235.72,235.7,2.8169]
[1733648690411,12.95258994,235.72,235.71,5.0]
[1733648691626,12.95258994,235.72,235.7,2.8169]
[1733648691833,12.95258994,235.71,235.68,2.8169]
[1733648692025,12.95258994,235.71,235.7,5.0]
[1733648692341,12.95258994,235.72,235.7,5.0]
[1733648692643,12.95258994,235.72,235.7,7.8169]
[1733648693007,12.95258994,235.73,235.7,7.8169]
[1733648693206,12.95258994,235.72,235.7,7.8169]
[1733648695145,15.02316148,235.78,235.7,7.8169]
[1733648695335,12.95258994,235.71,235.68,7.8169]
[1733648695522,20.0,235.75,235.7,7.8169]
[1733648696251,20.0,235.75,235.63,6.482]
[1733648696252,20.0,235.75,235.68,2.8169]
[1733648696432,12.95258994,235.71,235.7,5.0]
[1733648696630,12.95258994,235.71,235.7,7.8169]
[1733648697017,12.95258994,235.71,235.68,2.8169]
[1733648697219,20.0,235.75,235.7,7.8169]
[1733648697442,12.95258994,235.71,235.67,5.0]
[1733648697642,20.0,235.71,235.65,5.0]
[1733648697942,12.95258994,235.66,235.64,7.8169]
[1733648698120,12.95258994,235.65,235.64,7.8169]
[1733648699050,12.95258994,235.65,235.63,5.0]
[1733648699246,12.95258994,235.64,235.63,5.0]
[1733648699550,12.95258994,235.64,235.62,7.8169]
[1733648699718,12.95258994,235.63,235.62,7.8169]
[1733648701019,25.22932046,235.71,235.65,5.0]
[1733648701221,12.95258994,235.7,235.67,5.0]
[1733648701449,12.95258994,235.7,235.68,2.8169]
[1733648701661,12.95258994,235.69,235.67,5.0]
[1733648701828,12.95258994,235.68,235.65,5.0]
[1733648702027,12.95258994,235.66,235.65,5.0]
[1733648702553,12.95258994,235.66,235.64,2.8169]
[1733648704865,12.95258994,235.66,235.63,5.0]
[1733648705160,12.95258994,235.65,235.62,2.8169]
[1733648705454,12.95258994,235.63,235.59,2.8169]
[1733648705657,12.95258994,235.6,235.57,5.0]
[1733648705833,12.95258994,235.58,235.57,7.8169]
[1733648706160,12.95258994,235.58,235.57,2.8169]
[1733648706339,12.95258994,235.58,235.55,1.6664]
[1733648706554,12.95258994,235.56,235.54,2.8169]
[1733648706732,12.95258994,235.55,235.54,2.8169]
[1733648706931,12.95258994,235.56,235.54,7.8169]
[1733648707757,12.95258994,235.61,235.58,7.8169]
[1733648707959,10.6088,235.66,235.58,7.8169]
[1733648707960,12.95258994,235.62,235.6,2.8169]
[1733648708166,12.95258994,235.64,235.61,5.0]
[1733648708553,12.95258994,235.65,235.63,2.8169]
[1733648708858,12.95258994,235.65,235.63,7.8169]
[1733648709189,12.95258994,235.68,235.65,7.8169]
[1733648709341,12.95258994,235.69,235.65,7.8169]
[1733648709748,12.95258994,235.68,235.65,7.8169]
[1733648711064,12.95258994,235.69,235.67,2.8169]
[1733648711273,12.95258994,235.69,235.67,7.8169]
[1733648712266,12.45916148,235.77,235.69,2.8169]
[1733648712442,12.95258994,235.72,235.69,2.8169]
[1733648712641,12.95258994,235.72,235.7,5.0]
[1733648712969,12.95258994,235.73,235.71,2.8169]
[1733648713168,12.95258994,235.75,235.73,2.8169]
[1733648713344,12.95258994,235.75,235.74,5.0]
[1733648716279,18.1819104,235.75,235.7,5.0]
[1733648716571,12.95258994,235.71,235.7,5.0]
[1733648718172,12.95258994,235.72,235.71,2.8169]
[1733648718342,12.95258994,235.74,235.73,2.8169]
[1733648719244,12.95258994,235.76,235.73,2.8169]
[1733648719438,12.95258994,235.76,235.74,5.0]
[1733648719874,12.95258994,235.77,235.75,2.8169]
[1733648720238,12.95258994,235.77,235.76,5.0]
[1733648720656,12.95258994,235.79,235.76,5.0]
[1733648720949,12.95258994,235.82,235.79,5.0]
[1733648721155,12.95258994,235.82,235.8,2.8169]
[1733648721782,12.95258994,235.81,235.8,2.8169]
[1733648721946,12.95258994,235.82,235.8,2.8169]
[1733648722276,12.95258994,235.81,235.8,2.8169]
[1733648723370,12.95258994,235.81,235.78,2.8169]
[1733648723557,12.95258994,235.79,235.77,5.0]
[1733648723756,12.95258994,235.78,235.77,5.0]
[1733648724609,12.95258994,235.8,235.78,2.8169]
[1733648724978,32.95258994,235.81,235.78,2.8169]
[1733648725184,12.95258994,235.79,235.78,2.8169]
[1733648725986,12.95258994,235.8,235.78,2.8169]
[1733648726787,12.95258994,235.79,235.78,2.8169]
[1733648727322,12.95258994,235.8,235.78,2.8169]
[1733648727612,12.95258994,235.81,235.8,2.8169]
[1733648727937,12.95258994,235.82,235.8,2.8169]
[1733648728213,12.95258994,235.83,235.8,2.8169]
[1733648728707,12.95258994,235.83,235.82,2.8169]
[1733648730103,12.95258994,235.83,235.78,2.8169]
[1733648730391,12.95258994,235.79,235.78,2.8169]
[1733648730606,12.95258994,235.8,235.79,5.0]
[1733648730785,12.95258994,235.81,235.79,5.0]
[1733648730981,12.95258994,235.81,235.8,2.8169]
[1733648731716,12.95258994,235.81,235.79,5.0]
[1733648731923,10.6002,235.85,235.79,5.0]
[1733648731924,12.95258994,235.8,235.79,5.0]
[1733648732403,12.95258994,235.8,235.78,7.8169]
[1733648732604,12.95258994,235.79,235.78,7.8169]
[1733648733818,12.95258994,235.79,235.76,2.8169]
[1733648734026,12.95258994,235.77,235.76,7.8169]
[1733648734233,12.95258994,235.78,235.76,7.8169]
[1733648735236,12.95258994,235.77,235.74,2.8169]
[1733648735424,12.95258994,235.75,235.72,7.8169]
[1733648735623,12.95258994,235.74,235.72,5.0]
[1733648735820,12.95258994,235.73,235.72,5.0]
[1733648736942,12.95258994,235.74,235.72,7.8169]
[1733648737118,12.95258994,235.75,235.72,7.8169]
[1733648737728,12.95258994,235.74,235.72,7.8169]
[1733648737939,12.95258994,235.73,235.72,5.0]
[1733648738136,12.95258994,235.73,235.72,7.8169]
[1733648738323,12.95258994,235.73,235.72,5.0]
[1733648738743,12.95258994,235.73,235.7,7.8169]
[1733648738919,12.95258994,235.72,235.7,7.8169]
[1733648739625,12.95258994,235.71,235.7,5.0]
[1733648740028,12.95258994,235.71,235.68,7.8169]
[1733648740330,12.95258994,235.7,235.68,7.8169]
[1733648740545,12.95258994,235.69,235.68,7.8169]
[1733648742053,36.72947394,235.69,235.68,7.8169]
[1733648744524,23.776884,235.69,235.68,7.8169]
[1733648746552,12.95258994,235.74,235.68,7.8169]
[1733648746757,23.776884,235.73,235.72,2.8169]
[1733648746945,23.776884,235.73,235.72,7.8169]
[1733648748336,36.72947394,235.73,235.72,7.8169]
[1733648749473,23.776884,235.73,235.72,7.8169]
[1733648749972,36.72947394,235.73,235.72,7.8169]
[1733648750142,23.776884,235.73,235.72,7.8169]
[1733648750572,12.95258994,235.77,235.72,7.8169]
[1733648750864,36.72947394,235.77,235.76,2.8169]
[1733648751068,23.776884,235.77,235.76,2.8169]
[1733648751370,12.95258994,235.79,235.78,7.8169]
[1733648751964,12.95258994,235.8,235.78,7.8169]
[1733648752647,12.95258994,235.81,235.78,7.8169]
[1733648752845,12.95258994,235.81,235.8,5.0]
[1733648753150,12.95258994,235.81,235.8,7.8169]
[1733648753847,23.776884,235.81,235.8,7.8169]
[1733648755863,36.72947394,235.81,235.8,7.8169]
[1733648759384,23.776884,235.81,235.8,7.8169]
[1733648762594,32.06941878,235.81,235.8,7.8169]
[1733648762904,23.776884,235.81,235.8,7.8169]
[1733648766384,32.06941878,235.81,235.8,7.8169]
[1733648767189,23.776884,235.81,235.8,7.8169]
[1733648769733,23.776884,235.8,235.78,7.8169]
[1733648769914,8.29253478,235.79,235.76,7.8169]
[1733648770093,23.776884,235.79,235.78,2.8169]
[1733648770430,23.776884,235.79,235.78,7.8169]
[1733648770800,23.776884,235.79,235.78,2.8169]
[1733648771015,23.776884,235.79,235.78,7.8169]
[1733648771197,32.06941878,235.79,235.78,7.8169]
[1733648774316,23.776884,235.79,235.78,7.8169]
[1733648774501,8.29253478,235.83,235.78,7.8169]
[1733648774827,8.29253478,235.83,235.82,5.0]
[1733648775917,32.06941878,235.83,235.82,5.0]
[1733648776610,23.776884,235.83,235.82,5.0]
[1733648778138,8.29253478,235.87,235.86,2.8169]
[1733648778319,8.29253478,235.87,235.86,7.8169]
[1733648779317,32.06941878,235.87,235.86,7.8169]
[1733648779512,32.06941878,235.87,235.74,12.19]
[1733648779513,23.776884,235.86,235.83,2.8169]
[1733648779742,32.06941878,235.84,235.8,7.8169]
[1733648780037,8.29253478,235.81,235.8,7.8169]
[1733648780354,23.776884,235.81,235.8,7.8169]
[1733648786519,23.776884,235.85,235.84,7.8169]
[1733648787628,8.29253478,235.89,235.87,7.8169]
[1733648787854,6.36340858,235.96,235.89,7.8169]
[1733648788026,8.29253478,235.92,235.89,7.8169]
[1733648788357,8.29253478,235.91,235.89,7.8169]
[1733648788851,8.29253478,235.92,235.91,5.0]
[1733648789839,32.06941878,235.92,235.91,5.0]
[1733648790043,23.776884,235.92,235.91,7.8169]
[1733648790848,32.06941878,235.92,235.91,7.8169]
[1733648791043,23.776884,235.92,235.91,7.8169]
[1733648791441,8.29253478,235.93,235.91,7.8169]
[1733648791759,28.29253478,235.94,235.91,7.8169]
[1733648791962,28.29253478,235.94,235.93,2.8169]
[1733648792940,52.06941878,235.94,235.93,2.8169]
[1733648793568,23.776884,235.94,235.93,7.8169]
[1733648796072,23.776884,235.98,235.97,5.0]
[1733648796369,20.0,236.02,236.0,2.8169]
[1733648796580,8.29253478,236.02,236.01,5.0]
[1733648798262,32.06941878,236.02,236.01,5.0]
[1733648799051,32.06941878,236.02,235.94,9.87643478]
[1733648799052,23.776884,236.01,235.99,5.0]
[1733648799255,23.776884,236.01,235.98,2.8169]
[1733648799256,23.776884,235.99,235.98,5.0]
[1733648799469,32.06941878,235.99,235.98,7.8169]
[1733648799789,32.06941878,235.99,235.96,7.8169]
[1733648799995,23.776884,235.96,235.94,7.8169]
[1733648800292,8.29253478,235.95,235.92,7.8169]
[1733648800595,32.06941878,235.93,235.92,7.8169]
[1733648800761,23.776884,235.93,235.92,7.8169]
[1733648802698,32.06941878,235.93,235.9,2.8169]
[1733648802857,10.5942,235.98,235.9,2.8169]
[1733648802858,32.06941878,235.91,235.9,7.8169]
[1733648803175,32.06941878,235.91,235.9,5.0]
[1733648803376,32.06941878,235.91,235.9,7.8169]
[1733648804271,23.776884,235.91,235.9,7.8169]
[1733648805294,23.776884,235.96,235.95,7.8169]
[1733648805497,8.29253478,235.98,235.97,2.8169]
[1733648805664,8.29253478,235.99,235.98,5.0]
[1733648806180,8.29253478,235.99,235.97,2.8169]
[1733648806389,8.29253478,235.98,235.95,5.0]
[1733648806593,8.2229453,236.04,235.98,2.8169]
[1733648806786,8.29253478,235.99,235.97,5.0]
[1733648806999,20.0,236.01,235.97,5.0]
[1733648807395,20.0,236.01,235.98,2.8169]
[1733648807615,8.29253478,235.99,235.98,2.8169]
[1733648807919,23.776884,235.98,235.97,5.0]
[1733648808086,32.06941878,235.98,235.97,5.0]
[1733648809220,32.06941878,235.98,235.95,5.0]
[1733648809382,32.06941878,235.96,235.95,5.0]
[1733648809585,23.776884,235.96,235.95,5.0]
[1733648812217,23.776884,236.01,236.0,7.8169]
[1733648812714,0.4905453,236.04,236.0,7.8169]
[1733648812715,8.78308008,236.04,236.02,2.8169]
[1733648812922,8.29253478,236.03,236.02,7.8169]
[1733648813919,23.776884,236.03,236.02,7.8169]
[1733648815820,0.4905453,236.04,236.02,7.8169]
[1733648816018,8.78308008,236.04,236.02,7.8169]
[1733648816240,8.29253478,236.03,236.02,7.8169]
[1733648816645,8.29253478,236.03,236.02,5.0]
[1733648817010,32.06941878,236.03,236.02,5.0]
[1733648817722,23.776884,236.02,236.0,7.8169]
[1733648817926,8.29253478,236.01,236.0,7.8169]
[1733648818366,32.06941878,236.01,236.0,7.8169]
[1733648819175,23.776884,236.01,236.0,7.8169]
[1733648820440,8.78308008,236.04,236.03,2.8169]
[1733648820638,0.4905453,236.04,236.03,2.8169]
[1733648822380,32.55996408,236.04,236.03,2.8169]
[1733648822750,23.776884,236.03,236.01,2.8169]
[1733648822949,23.776884,236.03,236.02,5.0]
[1733648823773,32.06941878,236.03,236.01,2.8169]
[1733648823965,32.06941878,236.03,236.02,5.0]
[1733648825046,32.06941878,236.03,236.0,5.0]
[1733648825269,52.06941878,236.01,235.97,7.8169]
[1733648825574,23.776884,236.0,235.99,5.0]
[1733648825753,23.776884,236.0,235.97,7.8169]
[1733648825950,32.06941878,235.98,235.97,7.8169]
[1733648827167,23.776884,235.98,235.97,7.8169]
[1733648830351,8.29253478,236.03,235.97,7.8169]
[1733648830679,32.06941878,236.02,236.01,7.8169]
[1733648831567,32.06941878,236.02,236.01,5.0]
[1733648831874,20.0,236.0,235.99,5.0]
[1733648832079,52.06941878,236.0,235.99,5.0]
[1733648832754,23.776884,236.0,235.99,5.0]
[1733648833573,32.06941878,236.0,235.99,5.0]
[1733648834384,23.776884,236.0,235.99,5.0]
[1733648835765,0.4905453,236.04,236.03,7.8169]
[1733648839178,0.4905453,236.04,236.03,9.3731]
[1733648840070,8.78308008,236.04,236.03,7.8169]
[1733648840381,32.55996408,236.04,236.03,5.0]
[1733648840701,23.776884,236.03,236.01,5.0]
[1733648840889,32.06941878,236.02,236.01,5.0]
[1733648841369,32.06941878,236.02,236.01,7.8169]
[1733648841977,23.776884,236.02,236.01,7.8169]
[1733648842888,32.06941878,236.02,236.01,7.8169]
[1733648844001,32.06941878,236.02,236.01,5.0]
[1733648846664,36.71393473,236.02,236.01,5.0]
[1733648847995,36.71393473,236.02,236.01,7.8169]
[1733648848194,23.776884,236.02,236.01,7.8169]
[1733648848565,0.4905453,236.04,236.03,2.8169]
[1733648848859,0.4905453,236.04,236.03,7.8169]
[1733648852266,13.42759603,236.04,236.03,7.8169]
[1733648852465,37.20448003,236.04,236.03,7.8169]
[1733648853366,24.2674293,236.04,236.03,7.8169]
[1733648858295,0.4905453,236.04,236.03,7.8169]
[1733648858623,0.4905453,236.04,236.03,20.75395073]
[1733648858985,0.4905453,236.04,236.03,7.8169]
[1733648861325,0.4905453,236.04,236.03,20.75395073]
[1733648866202,0.4905453,236.04,236.03,26.13042073]
[1733648866409,0.4905453,236.04,236.03,21.13042073]
[1733648866602,0.4905453,236.04,236.03,20.87944073]
[1733648867018,0.4905453,236.04,236.03,33.81649146]
[1733648868494,0.4905453,236.04,236.03,49.2859557]
[1733648868724,0.4905453,236.04,236.03,54.4114457]
[1733648869397,0.4905453,236.04,236.03,54.5369357]
[1733648869602,32.04559714,236.18,236.17,7.8169]
[1733648869902,8.26871314,236.18,236.17,7.8169]
[1733648871415,32.04559714,236.18,236.17,7.8169]
[1733648871816,32.04559714,236.18,236.17,5.0]
[1733648872424,23.776884,236.18,236.17,7.8169]
[1733648876202,32.04559714,236.18,236.17,7.8169]
[1733648876645,32.04559714,236.18,236.17,5.0]
[1733648878814,32.04559714,236.18,236.17,7.8169]
[1733648879019,23.776884,236.18,236.17,7.8169]
[1733648879225,28.26871314,236.22,236.21,2.8169]
[1733648879941,20.0,236.22,236.21,7.8169]
[1733648880110,28.26871314,236.22,236.21,7.8169]
[1733648880739,43.776884,236.22,236.21,7.8169]
[1733648882816,52.04559714,236.22,236.21,7.8169]
[1733648883534,43.776884,236.22,236.21,7.8169]
[1733648883709,23.776884,236.22,236.21,7.8169]
[1733648885945,32.04559714,236.22,236.21,7.8169]
[1733648887338,23.776884,236.22,236.21,7.8169]
[1733648887725,32.04559714,236.22,236.21,7.8169]
[1733648888146,23.776884,236.22,236.21,7.8169]
[1733648888455,32.04559714,236.22,236.21,7.8169]
[1733648890330,23.776884,236.22,236.21,7.8169]
[1733648890630,32.04559714,236.22,236.21,7.8169]
[1733648893528,23.776884,236.22,236.21,7.8169]
[1733648894650,32.04559714,236.22,236.21,7.8169]
[1733648895961,23.776884,236.22,236.21,7.8169]
[1733648897762,32.04559714,236.22,236.21,7.8169]
[1733648904176,32.04559714,236.22,236.21,5.0]
[1733648904753,32.04559714,236.22,236.21,7.8169]
[1733648906587,32.04559714,236.22,236.21,5.0]
[1733648906745,32.04559714,236.22,236.21,7.8169]
[1733648908577,23.776884,236.22,236.21,7.8169]
[1733648921295,32.04559714,236.22,236.21,7.8169]
[1733648924094,32.04559714,236.22,236.21,5.0]
[1733648926474,32.04559714,236.22,236.21,7.8169]
[1733648931308,32.04559714,236.22,236.21,5.0]
[1733648932278,32.04559714,236.22,236.21,7.8169]
[1733648934907,23.776884,236.22,236.21,7.8169]
[1733648935119,20.0,236.24,236.21,7.8169]
[1733648935298,8.26871314,236.23,236.21,7.8169]
[1733648935976,11.0718453,236.27,236.21,7.8169]
[1733648935977,8.26871314,236.22,236.21,7.8169]
[1733648936514,32.04559714,236.22,236.21,7.8169]
[1733648941800,32.04559714,236.22,236.21,5.0]
[1733648942030,32.04559714,236.22,236.21,7.8169]
[1733648950526,32.04559714,236.22,236.21,5.0]
[1733648950694,23.776884,236.21,236.19,5.0]
[1733648950903,32.04559714,236.2,236.19,5.0]
[1733648951606,23.776884,236.2,236.19,5.0]
[1733648951810,32.04559714,236.2,236.19,5.0]
[1733648953637,23.776884,236.19,236.17,5.0]
[1733648953929,42.63069714,236.18,236.15,7.8169]
[1733648954232,52.04559714,236.16,236.15,7.8169]
[1733648954531,52.04559714,236.16,236.15,5.0]
[1733648957131,43.776884,236.15,236.13,5.0]
[1733648957300,8.26871314,236.14,236.13,5.0]
[1733648957629,32.04559714,236.14,236.13,5.0]
[1733648962703,23.776884,236.13,236.12,5.0]
[1733648962930,32.04559714,236.13,236.12,5.0]
[1733648963254,23.776884,236.14,236.13,5.0]
[1733648964138,32.04559714,236.14,236.13,5.0]
[1733648966829,8.26871314,236.14,236.13,7.8169]
[1733648967031,8.26871314,236.14,236.13,5.0]
[1733648967932,32.04559714,236.14,236.13,5.0]
[1733648969123,23.776884,236.13,236.12,5.0]
[1733648969324,32.04559714,236.13,236.12,5.0]
[1733648970216,32.04559714,236.13,236.08,7.3008083]
[1733648970544,32.04559714,236.09,236.08,2.3008083]
[1733648972307,32.04559714,236.09,236.08,8.3e-06]
[1733648974340,23.776884,236.09,236.08,8.3e-06]
[1733648974559,32.04559714,236.09,236.08,8.3e-06]
[1733648975225,23.776884,236.09,236.08,8.3e-06]
[1733648975429,32.04559714,236.09,236.08,8.3e-06]
[1733648985351,36.98458427,236.09,236.08,8.3e-06]
[1733648985953,20.0,236.06,236.02,5.0]
[1733648986152,8.26871314,236.03,236.02,5.0]
[1733648986951,32.04559714,236.03,236.02,5.0]
[1733648990355,23.776884,236.02,236.0,5.0]
[1733648990523,8.26871314,236.01,236.0,5.0]
[1733648990724,32.04559714,236.01,235.98,5.0]
[1733648990934,32.04559714,235.99,235.98,5.0]
[1733648992944,23.776884,235.98,235.96,5.0]
[1733648993142,8.26871314,235.97,235.96,5.0]
[1733648993442,32.04559714,235.97,235.96,5.0]
[1733648993936,23.776884,235.96,235.94,5.0]
[1733648994143,32.04559714,235.95,235.94,5.0]
[1733648996468,32.04559714,235.95,235.94,7.8169]
[1733648997147,8.26871314,235.98,235.97,2.8169]
[1733648997372,8.26871314,235.98,235.97,7.8169]
[1733648998848,23.776884,235.98,235.97,7.8169]
[1733648999060,10.5898,236.08,236.03,5.0]
[1733648999557,10.5898,236.08,236.05,5.0]
[1733648999944,8.26871314,236.06,236.05,5.0]
[1733649000368,10.5898,236.08,236.06,2.8169]
[1733649000568,8.26871314,236.07,236.06,2.8169]
[1733649001067,1.83140632,236.11,236.06,2.8169]
[1733649001372,1.87533732,236.16,236.09,7.8169]
[1733649001537,33.07485256,236.16,236.11,5.0]
[1733649002171,1.84498015,236.18,236.11,5.0]
[1733649002474,10.5861,236.16,236.12,2.8169]
[1733649002675,28.26871314,236.13,236.12,2.8169]
[1733649002974,8.26871314,236.14,236.13,5.0]
[1733649003943,32.04559714,236.14,236.13,5.0]
[1733649004272,10.5843,236.2,236.16,5.0]
[1733649005448,52.04559714,236.17,236.16,5.0]
[1733649006468,4.16795037,236.25,236.18,2.8169]
[1733649006785,10.5827,236.24,236.19,5.0]
[1733649007957,8.26871314,236.2,236.19,5.0]
[1733649008371,23.776884,236.19,236.17,5.0]
[1733649008579,32.04559714,236.18,236.17,5.0]
[1733649010656,43.776884,236.16,236.15,5.0]
[1733649010888,52.04559714,236.16,236.15,5.0]
[1733649011384,23.776884,236.15,236.13,5.0]
[1733649011563,23.776884,236.13,236.11,5.0]
[1733649011896,32.04559714,236.12,236.11,5.0]
[1733649012391,20.0,236.1,236.09,5.0]
[1733649012696,52.04559714,236.1,236.09,5.0]
[1733649013489,43.776884,236.09,236.08,2.8169]
[1733649013694,52.04559714,236.09,236.08,2.8169]
[1733649017485,52.04559714,236.09,236.07,5.0]
[1733649018196,32.04559714,236.08,236.07,5.0]
[1733649018978,32.04559714,236.08,236.01,1.6607]
[1733649018979,32.04559714,236.08,236.05,5.0]
[1733649019179,8.26871314,236.06,236.05,5.0]
[1733649019379,32.04559714,236.06,236.05,5.0]
[1733649022459,32.04559714,236.06,236.03,5.0]
[1733649022460,23.776884,236.05,236.03,5.0]
[1733649022661,23.776884,236.03,236.01,5.0]
[1733649022972,32.04559714,236.02,236.01,5.0]
[1733649024557,23.776884,236.02,236.01,5.0]
[1733649027292,32.04559714,236.02,236.01,5.0]
[1733649028785,23.776884,236.02,236.01,5.0]
[1733649030365,32.04559714,236.02,236.01,5.0]
[1733649031892,23.776884,236.02,236.01,5.0]
[1733649035922,8.26871314,236.07,236.06,7.8169]
[1733649036293,8.26871314,236.08,236.06,7.8169]
[1733649036502,8.26871314,236.07,236.06,7.8169]
[1733649036985,32.04559714,236.07,236.06,7.8169]
[1733649037407,23.776884,236.07,236.06,7.8169]
[1733649039650,32.04559714,236.07,236.06,7.8169]
[1733649040120,32.04559714,236.07,236.06,5.0]
[1733649041717,32.04559714,236.07,236.04,5.0]
[1733649041890,32.04559714,236.05,236.04,5.0]
[1733649042207,32.04559714,236.05,236.04,7.8169]
[1733649042913,32.04559714,236.05,236.04,5.0]
[1733649044530,23.776884,236.04,236.01,5.0]
[1733649044823,23.776884,236.04,236.0,2.8169]
[1733649044824,23.776884,236.04,236.03,5.0]